fUSD/lending_fUSD_20241225
["ID","MTS","AMOUNT","RATE_DAILY","PERIOD"]
[346638783,1735139433492,-502.23,0.00011,2]
[346638785,1735139433503,-496.94,0.00011,2]
[346638787,1735139433514,-492.82,0.00011,2]
[346638789,1735139433524,-503.83,0.00011,2]
[346638791,1735139433535,-495.43,0.00011,2]
[346638793,1735139433548,-498.62,0.00011,2]
[346638795,1735139433560,-504.74,0.00011,2]
[346638797,1735139433571,-503.26,0.00011,2]
[346638799,1735139433581,-500.23,0.00011,2]
[346638801,1735139433591,-506.39,0.00011,2]
[346638802,1735139433602,-504.43,0.00011,2]
[346638804,1735139433612,-497.37,0.00011,2]
[346638806,1735139433622,-504.84,0.00011,2]
[346638808,1735139433632,-490.42,0.00011,2]
[346638810,1735139433643,-502.59,0.00011,2]
[346638812,1735139433654,-491.36,0.00011,2]
[346638814,1735139433663,-501.43,0.00011,2]
[346638816,1735139433674,-505.59,0.00011,2]
[346638817,1735139433684,-491.9,0.00011,2]
[346638819,1735139433695,-494.32,0.00011,2]
[346638821,1735139433705,-493.66,0.00011,2]
[346638823,1735139433715,-494.81,0.00011,2]
[346638825,1735139433725,-496.77,0.00011,2]
[346638827,1735139433735,-495.13,0.00011,2]
[346638828,1735139433745,-503.46,0.00011,2]
[346638830,1735139433758,-494.59,0.00011,2]
[346638832,1735139433769,-507.39,0.00011,2]
[346638834,1735139433780,-499.24,0.00011,2]
[346638836,1735139433790,-503.4,0.00011,2]
[346638838,1735139433800,-494.05,0.00011,2]
[346638840,1735139433813,-509.11,0.00011,2]
[346638842,1735139433823,-493.17,0.00011,2]
[346638844,1735139433833,-499.71,0.00011,2]
[346638845,1735139433845,-506.29,0.00011,2]
[346638847,1735139433856,-504.29,0.00011,2]
[346638849,1735139433866,-493.97,0.00011,2]
[346638851,1735139433876,-492.98,0.00011,2]
[346638853,1735139433887,-493.68,0.00011,2]
[346638855,1735139433897,-493.21,0.00011,2]
[346638857,1735139433907,-499.29,0.00011,2]
[346638859,1735139433916,-491.02,0.00011,2]
[346638861,1735139433927,-494.36,0.00011,2]
[346638863,1735139433936,-509.62,0.00011,2]
[346638865,1735139433946,-226.81,0.00011221,2]
[346638867,1735139433957,-171.51,0.00011257,2]
[346638869,1735139433966,-250.0,0.00011269,2]
[346638871,1735139433976,-1000.0,0.00011305,2]
[346638873,1735139433986,-200.0,0.00011343,2]
[346638874,1735139433998,-495.7267,0.00011345,2]
[346638876,1735139434008,-174.04,0.00011423,2]
[346638878,1735139434018,-500.0,0.00011444,2]
[346638880,1735139434028,-500.0,0.00011444,2]
[346638882,1735139434038,-500.0,0.00011445,2]
[346638884,1735139434047,-646.15414512,0.00011445,2]
[346638886,1735139434056,-500.0,0.00011445,2]
[346638888,1735139434067,-500.0,0.00011445,2]
[346638890,1735139434076,-500.0,0.00011445,2]
[346638891,1735139434086,-500.0,0.00011445,2]
[346638893,1735139434095,-500.0,0.00011445,2]
[346638895,1735139434105,-500.0,0.00011445,2]
[346638897,1735139434114,-506.64165827,0.00011445,2]
[346638899,1735139434124,-500.0,0.00011445,2]
[346638901,1735139434133,-500.0,0.00011445,2]
[346638903,1735139434143,-500.0,0.00011445,2]
[346638904,1735139434152,-585.38,0.00011616,2]
[346638906,1735139434163,-500.0,0.00011718,2]
[346638908,1735139434174,-500.0,0.00011718,2]
[346638910,1735139434183,-492.97,0.00011719,2]
[346638912,1735139434193,-500.0,0.00011719,2]
[346638914,1735139434202,-215.8009454,0.00011719,2]
[346638916,1735139434212,-500.0,0.00011719,2]
[346638918,1735139434222,-500.0,0.00011719,2]
[346638920,1735139434232,-500.0,0.00011719,2]
[346638922,1735139434242,-500.0,0.00011719,2]
[346638924,1735139434251,-500.0,0.00011719,2]
[346638925,1735139434262,-500.0,0.00011719,2]
[346638927,1735139434272,-500.0,0.00011815,2]
[346638929,1735139434282,-500.0,0.00011815,2]
[346638931,1735139434293,-500.0,0.00011815,2]
[346638933,1735139434303,-500.0,0.00011815,2]
[346638935,1735139434315,-531.6,0.00011815,2]
[346638937,1735139434325,-600.0,0.00011972,2]
[346638939,1735139434335,-500.0,0.00011972,2]
[346638941,1735139434345,-1700.0,0.00011972,2]
[346638943,1735139434355,-500.0,0.00011992,2]
[346638945,1735139434364,-500.0,0.00011992,2]
[346638946,1735139434373,-500.0,0.00011993,2]
[346638948,1735139434382,-500.0,0.00011993,2]
[346638950,1735139434391,-500.0,0.00011993,2]
[346638952,1735139434400,-500.0,0.00011993,2]
[346638954,1735139434409,-500.0,0.00011993,2]
[346638956,1735139434418,-500.0,0.00011993,2]
[346638958,1735139434428,-500.0,0.00011993,2]
[346638960,1735139434436,-150.0,0.00012075,2]
[346638961,1735139434446,-196.0,0.00012179,2]
[346638963,1735139434456,-425.756,0.0001218,2]
[346638965,1735139434466,-500.0,0.00012265,2]
[346638967,1735139434475,-1242.56,0.00012265,2]
[346638969,1735139434484,-500.0,0.00012265,2]
[346638971,1735139434494,-500.0,0.00012266,2]
[346638973,1735139434505,-500.0,0.00012266,2]
[346638975,1735139434514,-500.0,0.00012266,2]
[346638977,1735139434523,-500.0,0.00012266,2]
[346638978,1735139434533,-500.0,0.00012266,2]
[346638980,1735139434544,-500.0,0.00012266,2]
[346638982,1735139434555,-500.0,0.00012266,2]
[346638984,1735139434567,-500.0,0.00012266,2]
[346638986,1735139434576,-500.0,0.00012266,2]
[346638988,1735139434585,-500.0,0.00012266,2]
[346638990,1735139434595,-500.0,0.00012266,2]
[346638992,1735139434605,-500.0,0.00012266,2]
[346638994,1735139434614,-500.0,0.00012266,2]
[346638996,1735139434623,-500.0,0.00012266,2]
[346638997,1735139434633,-500.0,0.00012266,2]
[346638998,1735139434643,-500.0,0.00012266,2]
[346638999,1735139434652,-500.0,0.00012266,2]
[346639000,1735139434663,-500.0,0.00012266,2]
[346639001,1735139434673,-500.0,0.00012266,2]
[346639002,1735139434683,-500.0,0.00012266,2]
[346639003,1735139434692,-500.0,0.00012266,2]
[346639004,1735139434701,-500.0,0.00012266,2]
[346639005,1735139434711,-500.0,0.00012266,2]
[346639006,1735139434719,-401.22687228,0.00012266,2]
[346639007,1735139434729,-500.0,0.00012266,2]
[346639008,1735139434739,-500.0,0.00012266,2]
[346639009,1735139434749,-488.64293715,0.00012266,2]
[346639010,1735139434759,-500.0,0.00012266,2]
[346639011,1735139434768,-646.37,0.00012266,2]
[346639012,1735139434777,-500.0,0.00012266,2]
[346639014,1735139434787,-500.0,0.00012266,2]
[346639016,1735139434796,-500.0,0.00012266,2]
[346639018,1735139434805,-500.0,0.00012266,2]
[346639019,1735139434816,-887.59,0.00012266,2]
[346639021,1735139434825,-500.0,0.00012266,2]
[346639023,1735139434834,-500.0,0.00012266,2]
[346639025,1735139434843,-253.71169257,0.00012266,2]
[346639027,1735139434853,-538.92,0.00012266,2]
[346639029,1735139434862,-2089.46,0.00012266,2]
[346639031,1735139434872,-282.05930508,0.00012266,2]
[346639033,1735139434881,-500.0,0.00012266,2]
[346639035,1735139434891,-500.0,0.00012266,2]
[346639037,1735139434901,-500.0,0.00012266,2]
[346639039,1735139434910,-500.0,0.00012266,2]
[346639041,1735139434920,-500.0,0.00012266,2]
[346639043,1735139434929,-500.0,0.00012266,2]
[346639046,1735139434938,-500.0,0.00012266,2]
[346639047,1735139434948,-500.0,0.00012266,2]
[346639049,1735139434957,-500.0,0.00012266,2]
[346639051,1735139434966,-500.0,0.00012266,2]
[346639053,1735139434976,-500.0,0.00012266,2]
[346639055,1735139434987,-500.0,0.00012266,2]
[346639057,1735139434997,-500.0,0.00012266,2]
[346639060,1735139435007,-721.94,0.00012266,2]
[346639062,1735139435016,-669.05,0.00012266,2]
[346639063,1735139435026,-500.0,0.00012266,2]
[346639065,1735139435035,-500.0,0.00012266,2]
[346639068,1735139435044,-500.0,0.00012266,2]
[346639070,1735139435054,-500.0,0.00012266,2]
[346639071,1735139435064,-500.0,0.00012266,2]
[346639073,1735139435073,-500.0,0.00012266,2]
[346639075,1735139435083,-1208.93,0.00012266,2]
[346639077,1735139435093,-500.0,0.00012266,2]
[346639080,1735139435102,-1082.95,0.00012266,2]
[346639082,1735139435112,-829.37,0.00012266,2]
[346639084,1735139435122,-500.0,0.00012266,2]
[346639086,1735139435132,-853.7,0.00012266,2]
[346639088,1735139435142,-500.0,0.00012266,2]
[346639090,1735139435150,-500.0,0.00012266,2]
[346639092,1735139435160,-1623.21,0.00012266,2]
[346639094,1735139435169,-500.0,0.00012266,2]
[346639096,1735139435177,-500.0,0.00012266,2]
[346639098,1735139435186,-6272.99,0.00012266,2]
[346639099,1735139435195,-2373.67,0.00012266,2]
[346639101,1735139435205,-623.60346632,0.00012266,2]
[346639103,1735139435214,-500.0,0.00012266,2]
[346639105,1735139435223,-524.6,0.00012266,2]
[346639107,1735139435232,-500.0,0.00012266,2]
[346639109,1735139435242,-564.3,0.00012266,2]
[346639111,1735139435251,-500.0,0.00012266,2]
[346639113,1735139435260,-500.0,0.00012266,2]
[346639115,1735139435270,-500.0,0.00012266,2]
[346639117,1735139435279,-500.0,0.00012266,2]
[346639119,1735139435288,-500.0,0.00012266,2]
[346639121,1735139435297,-500.0,0.00012266,2]
[346639123,1735139435306,-500.0,0.00012266,2]
[346639125,1735139435316,-500.0,0.00012266,2]
[346639127,1735139435325,-564.55,0.00012266,2]
[346639129,1735139435334,-500.0,0.00012266,2]
[346639131,1735139435344,-3917.28,0.00012266,2]
[346639133,1735139435354,-500.0,0.00012266,2]
[346639135,1735139435363,-500.0,0.00012266,2]
[346639137,1735139435373,-500.0,0.00012266,2]
[346639139,1735139435382,-716.45,0.00012266,2]
[346639141,1735139435391,-1234.85,0.00012266,2]
[346639143,1735139435401,-500.0,0.00012266,2]
[346639145,1735139435410,-500.0,0.00012266,2]
[346639147,1735139435419,-500.0,0.00012266,2]
[346639149,1735139435428,-500.0,0.00012266,2]
[346639151,1735139435437,-500.0,0.00012266,2]
[346639153,1735139435446,-1335.52,0.00012266,2]
[346639155,1735139435457,-1131.19,0.00012266,2]
[346639157,1735139435471,-882.14,0.00012266,2]
[346639159,1735139435481,-500.0,0.00012266,2]
[346639161,1735139435490,-500.0,0.00012266,2]
[346639163,1735139435499,-500.0,0.00012266,2]
[346639165,1735139435509,-500.0,0.00012266,2]
[346639167,1735139435518,-500.0,0.00012266,2]
[346639169,1735139435527,-500.0,0.00012267,2]
[346639171,1735139435536,-500.0,0.00012267,2]
[346639173,1735139435547,-500.0,0.00012267,2]
[346639175,1735139435557,-500.0,0.00012267,2]
[346639177,1735139435567,-500.0,0.00012267,2]
[346639179,1735139435576,-500.0,0.00012267,2]
[346639181,1735139435585,-500.0,0.00012267,2]
[346639183,1735139435594,-1000.0,0.000123,2]
[346639185,1735139435604,-230.0,0.000123,2]
[346639187,1735139435613,-2397.931,0.00012301,2]
[346639189,1735139435623,-500.0,0.00012328,2]
[346639191,1735139435632,-500.0,0.00012328,2]
[346639193,1735139435641,-429.10429252,0.0001234,2]
[346639195,1735139435651,-706.2595,0.00012439,2]
[346639197,1735139435660,-1500.0,0.00012478,2]
[346639199,1735139435670,-1500.0,0.00012521,2]
[346639201,1735139435679,-500.0,0.00012539,2]
[346639203,1735139435689,-1242.56,0.00012539,2]
[346639205,1735139435698,-500.0,0.00012539,2]
[346639207,1735139435708,-500.0,0.00012539,2]
[346639209,1735139435718,-500.0,0.00012539,2]
[346639211,1735139435727,-500.0,0.00012539,2]
[346639214,1735139435737,-500.0,0.00012539,2]
[346639215,1735139435747,-2073.41,0.00012539,2]
[346639217,1735139435756,-876.74,0.00012539,2]
[346639219,1735139435766,-535.6,0.00012539,2]
[346639221,1735139435775,-500.0,0.00012539,2]
[346639223,1735139435784,-500.0,0.00012539,2]
[346639225,1735139435794,-854.02,0.00012539,2]
[346639227,1735139435803,-500.0,0.00012539,2]
[346639229,1735139435812,-906.83,0.00012539,2]
[346639231,1735139435822,-500.0,0.00012539,2]
[346639233,1735139435831,-649.19997721,0.00012539,2]
[346639235,1735139435840,-500.0,0.00012539,2]
[346639237,1735139435850,-2790.12,0.00012539,2]
[346639239,1735139435860,-500.0,0.00012539,2]
[346639241,1735139435869,-500.0,0.00012539,2]
[346639243,1735139435878,-500.0,0.00012539,2]
[346639245,1735139435887,-500.0,0.00012539,2]
[346639247,1735139435897,-616.22,0.00012539,2]
[346639249,1735139435906,-1943.3,0.00012539,2]
[346639251,1735139435916,-500.0,0.00012539,2]
[346639253,1735139435925,-605.85,0.00012539,2]
[346639255,1735139435935,-500.0,0.00012539,2]
[346639257,1735139435944,-500.0,0.00012539,2]
[346639259,1735139435953,-500.0,0.00012539,2]
[346639261,1735139435963,-500.0,0.00012539,2]
[346639262,1735139435972,-500.0,0.00012539,2]
[346639263,1735139435982,-614.58,0.00012539,2]
[346639264,1735139435991,-500.0,0.0001254,2]
[346639265,1735139436000,-500.0,0.0001254,2]
[346639266,1735139436010,-500.0,0.0001254,2]
[346639267,1735139436019,-181.91257643,0.0001254,2]
[346639268,1735139436029,-491.20515002,0.0001254,2]
[346639269,1735139436039,-481.14196887,0.0001254,2]
[346639270,1735139436048,-500.0,0.0001254,2]
[346639271,1735139436057,-500.0,0.0001254,2]
[346639272,1735139436069,-500.0,0.0001254,2]
[346639273,1735139436078,-500.0,0.0001254,2]
[346639274,1735139436088,-500.0,0.0001254,2]
[346639275,1735139436097,-330.99657584,0.0001254,2]
[346639276,1735139436106,-500.0,0.0001254,2]
[346639277,1735139436116,-503.94650527,0.0001254,2]
[346639278,1735139436126,-500.0,0.0001254,2]
[346639279,1735139436135,-500.0,0.0001254,2]
[346639280,1735139436144,-500.0,0.0001254,2]
[346639281,1735139436153,-500.0,0.0001254,2]
[346639282,1735139436163,-500.0,0.0001254,2]
[346639283,1735139436172,-500.0,0.0001254,2]
[346639284,1735139436181,-500.0,0.0001254,2]
[346639285,1735139436190,-500.0,0.0001254,2]
[346639286,1735139436199,-500.0,0.0001254,2]
[346639287,1735139436207,-500.0,0.0001254,2]
[346639288,1735139436216,-500.0,0.0001254,2]
[346639289,1735139436226,-500.0,0.0001254,2]
[346639290,1735139436234,-512.17519856,0.0001254,2]
[346639291,1735139436243,-646.37,0.0001254,2]
[346639292,1735139436252,-500.0,0.0001254,2]
[346639293,1735139436263,-500.0,0.0001254,2]
[346639294,1735139436272,-500.0,0.0001254,2]
[346639295,1735139436282,-500.0,0.0001254,2]
[346639296,1735139436291,-887.59,0.0001254,2]
[346639297,1735139436299,-500.0,0.0001254,2]
[346639298,1735139436309,-500.0,0.0001254,2]
[346639299,1735139436320,-538.92,0.0001254,2]
[346639300,1735139436329,-2089.46,0.0001254,2]
[346639301,1735139436339,-500.0,0.0001254,2]
[346639302,1735139436348,-337.73866809,0.0001254,2]
[346639303,1735139436358,-500.0,0.0001254,2]
[346639304,1735139436367,-500.0,0.0001254,2]
[346639305,1735139436376,-500.0,0.0001254,2]
[346639306,1735139436385,-500.0,0.0001254,2]
[346639307,1735139436395,-500.0,0.0001254,2]
[346639308,1735139436404,-500.0,0.0001254,2]
[346639309,1735139436413,-500.0,0.0001254,2]
[346639310,1735139436422,-500.0,0.0001254,2]
[346639311,1735139436431,-500.0,0.0001254,2]
[346639312,1735139436441,-500.0,0.0001254,2]
[346639313,1735139436451,-721.94,0.0001254,2]
[346639314,1735139436462,-669.05,0.0001254,2]
[346639315,1735139436475,-500.0,0.0001254,2]
[346639316,1735139436484,-500.0,0.0001254,2]
[346639317,1735139436493,-500.0,0.0001254,2]
[346639318,1735139436663,-509.10221341,0.0001254,2]
[346639319,1735139436674,-500.0,0.0001254,2]
[346639320,1735139436684,-500.0,0.0001254,2]
[346639321,1735139436694,-1208.93,0.0001254,2]
[346639322,1735139436703,-500.0,0.0001254,2]
[346639323,1735139436712,-1082.95,0.0001254,2]
[346639324,1735139436722,-829.37,0.0001254,2]
[346639325,1735139436733,-853.7,0.0001254,2]
[346639326,1735139436743,-500.0,0.0001254,2]
[346639327,1735139436752,-500.0,0.0001254,2]
[346639328,1735139436761,-1623.21,0.0001254,2]
[346639329,1735139436772,-500.0,0.0001254,2]
[346639330,1735139436781,-500.0,0.0001254,2]
[346639331,1735139436791,-6272.99,0.0001254,2]
[346639332,1735139436800,-2373.67,0.0001254,2]
[346639333,1735139436809,-500.0,0.0001254,2]
[346639334,1735139436820,-524.6,0.0001254,2]
[346639335,1735139436829,-564.52694346,0.0001254,2]
[346639336,1735139436838,-564.3,0.0001254,2]
[346639337,1735139436848,-500.0,0.0001254,2]
[346639338,1735139436857,-500.0,0.0001254,2]
[346639339,1735139436867,-500.0,0.0001254,2]
[346639340,1735139436876,-500.0,0.0001254,2]
[346639341,1735139436886,-500.0,0.0001254,2]
[346639342,1735139436895,-500.0,0.0001254,2]
[346639343,1735139436904,-500.0,0.0001254,2]
[346639344,1735139436913,-500.0,0.0001254,2]
[346639345,1735139436923,-500.0,0.0001254,2]
[346639346,1735139436933,-564.55,0.0001254,2]
[346639347,1735139436942,-500.0,0.0001254,2]
[346639348,1735139436951,-3917.28,0.0001254,2]
[346639349,1735139436961,-500.0,0.0001254,2]
[346639350,1735139436970,-500.0,0.0001254,2]
[346639351,1735139436979,-716.45,0.0001254,2]
[346639352,1735139436989,-500.0,0.0001254,2]
[346639353,1735139436998,-1234.85,0.0001254,2]
[346639354,1735139437008,-500.0,0.0001254,2]
[346639355,1735139437017,-500.0,0.0001254,2]
[346639356,1735139437027,-500.0,0.0001254,2]
[346639357,1735139437036,-500.0,0.0001254,2]
[346639358,1735139437045,-500.0,0.0001254,2]
[346639359,1735139437054,-1335.52,0.0001254,2]
[346639360,1735139437064,-1131.19,0.0001254,2]
[346639361,1735139437073,-882.14,0.0001254,2]
[346639362,1735139437083,-500.0,0.0001254,2]
[346639363,1735139437092,-500.0,0.0001254,2]
[346639364,1735139437102,-500.0,0.0001254,2]
[346639365,1735139437111,-500.0,0.0001254,2]
[346639366,1735139437120,-599.70069277,0.00012541,2]
[346639367,1735139437130,-500.0,0.00012541,2]
[346639368,1735139437139,-500.0,0.00012541,2]
[346639369,1735139437149,-500.0,0.00012541,2]
[346639370,1735139437158,-500.0,0.00012541,2]
[346639371,1735139437167,-500.0,0.00012541,2]
[346639372,1735139437177,-500.0,0.00012541,2]
[346639373,1735139437186,-1500.0,0.00012543,2]
[346639374,1735139437195,-151.58,0.00012549,2]
[346639375,1735139437204,-285.3803245,0.00012558,2]
[346639376,1735139437213,-1129.72978051,0.00012559,2]
[346639377,1735139437222,-150.0,0.00012616,2]
[346639378,1735139437232,-1500.0,0.00012618,2]
[346639379,1735139437241,-226.81,0.00012623,2]
[346639380,1735139437250,-150.0,0.00012629,2]
[346639381,1735139437259,-150.0,0.00012638,2]
[346639382,1735139437268,-150.0,0.00012672,2]
[346639383,1735139437277,-1500.0,0.00012695,2]
[346639384,1735139437286,-653.71808181,0.00012695,2]
[346639385,1735139437296,-1000.0,0.000127,3]
[346639386,1735139437304,-1000.0,0.000127,3]
[346639387,1735139437314,-1000.0,0.000127,2]
[346639388,1735139437324,-1000.0,0.000127,2]
[346639389,1735139437333,-1279.0,0.000127,2]
[346639390,1735139437342,-1000.0,0.000127,2]
[346639391,1735139437351,-642.0,0.000127,3]
[346639392,1735139437360,-169.63611045,0.00012713,2]
[346639393,1735139437369,-1828.57249631,0.00012714,2]
[346639394,1735139437378,-1000.0,0.00012718,2]
[346639395,1735139437388,-1828.57249629,0.00012735,2]
[346639396,1735139437397,-150.0,0.00012747,2]
[346639397,1735139437406,-1828.57249629,0.00012755,2]
[346639398,1735139437417,-1828.57249629,0.00012776,2]
[346639399,1735139437426,-1828.57249629,0.00012797,2]
[346639400,1735139437435,-37772.40909448,0.00012802,2]
[346639401,1735139437445,-500.0,0.00012813,2]
[346639402,1735139437454,-1242.56,0.00012813,2]
[346639403,1735139437467,-500.0,0.00012813,2]
[346639404,1735139437477,-500.0,0.00012813,2]
[346639405,1735139437487,-500.0,0.00012813,2]
[346639406,1735139437496,-500.0,0.00012813,2]
[346639407,1735139437507,-500.0,0.00012813,2]
[346639408,1735139437516,-2073.41,0.00012813,2]
[346639409,1735139437526,-876.74,0.00012813,2]
[346639410,1735139437536,-535.6,0.00012813,2]
[346639411,1735139437546,-500.0,0.00012813,2]
[346639412,1735139437555,-500.0,0.00012813,2]
[346639413,1735139437565,-854.02,0.00012813,2]
[346639414,1735139437574,-500.0,0.00012813,2]
[346639415,1735139437584,-906.83,0.00012813,2]
[346639416,1735139437593,-500.0,0.00012813,2]
[346639417,1735139437603,-500.0,0.00012813,2]
[346639418,1735139437612,-2790.12,0.00012813,2]
[346639419,1735139437621,-500.0,0.00012813,2]
[346639420,1735139437631,-211.89540805,0.00012813,2]
[346639421,1735139437640,-500.0,0.00012813,2]
[346639422,1735139437649,-500.0,0.00012813,2]
[346639423,1735139437658,-616.22,0.00012813,2]
[346639424,1735139437667,-1943.3,0.00012813,2]
[346639425,1735139437676,-304.41,0.00012813,2]
[346639426,1735139437685,-605.85,0.00012813,2]
[346639427,1735139437695,-500.0,0.00012813,2]
[346639428,1735139437704,-500.0,0.00012813,2]
[346639429,1735139437713,-500.0,0.00012813,2]
[346639430,1735139437722,-500.0,0.00012813,2]
[346639431,1735139437731,-500.0,0.00012813,2]
[346639432,1735139437741,-614.58,0.00012813,2]
[346639433,1735139437750,-500.0,0.00012814,2]
[346639434,1735139437759,-500.0,0.00012814,2]
[346639435,1735139437768,-500.0,0.00012814,2]
[346639436,1735139437777,-500.0,0.00012814,2]
[346639437,1735139437787,-500.0,0.00012814,2]
[346639438,1735139437796,-160.85421146,0.00012814,2]
[346639439,1735139437805,-500.0,0.00012814,2]
[346639440,1735139437815,-500.0,0.00012814,2]
[346639441,1735139437824,-500.0,0.00012814,2]
[346639442,1735139437834,-500.0,0.00012814,2]
[346639443,1735139437843,-500.0,0.00012814,2]
[346639444,1735139437852,-500.0,0.00012814,2]
[346639445,1735139437862,-500.0,0.00012814,2]
[346639446,1735139437871,-500.0,0.00012814,2]
[346639447,1735139437881,-510.47172672,0.00012814,2]
[346639448,1735139437890,-500.0,0.00012814,2]
[346639449,1735139437900,-500.0,0.00012814,2]
[346639450,1735139437909,-500.0,0.00012814,2]
[346639451,1735139437919,-605.9764033,0.00012814,2]
[346639452,1735139437929,-500.0,0.00012814,2]
[346639453,1735139437939,-500.0,0.00012814,2]
[346639454,1735139437949,-646.37,0.00012814,2]
[346639455,1735139437958,-500.0,0.00012814,2]
[346639456,1735139437967,-500.0,0.00012814,2]
[346639457,1735139437976,-500.0,0.00012814,2]
[346639458,1735139437986,-500.0,0.00012814,2]
[346639459,1735139437995,-887.59,0.00012814,2]
[346639460,1735139438004,-500.0,0.00012814,2]
[346639461,1735139438013,-500.0,0.00012814,2]
[346639462,1735139438022,-538.92,0.00012814,2]
[346639463,1735139438031,-2089.46,0.00012814,2]
[346639464,1735139438041,-500.0,0.00012814,2]
[346639465,1735139438050,-500.0,0.00012814,2]
[346639466,1735139438059,-500.0,0.00012814,2]
[346639467,1735139438070,-500.0,0.00012814,2]
[346639468,1735139438079,-500.0,0.00012814,2]
[346639469,1735139438089,-500.0,0.00012814,2]
[346639470,1735139438098,-500.0,0.00012814,2]
[346639471,1735139438107,-500.0,0.00012814,2]
[346639472,1735139438117,-500.0,0.00012814,2]
[346639473,1735139438125,-500.0,0.00012814,2]
[346639474,1735139438135,-721.94,0.00012814,2]
[346639475,1735139438144,-669.05,0.00012814,2]
[346639476,1735139438154,-500.0,0.00012814,2]
[346639477,1735139438163,-500.0,0.00012814,2]
[346639479,1735139438172,-500.0,0.00012814,2]
[346639480,1735139438181,-500.0,0.00012814,2]
[346639481,1735139438191,-500.0,0.00012814,2]
[346639482,1735139438200,-1208.93,0.00012814,2]
[346639483,1735139438210,-1082.95,0.00012814,2]
[346639484,1735139438219,-500.0,0.00012814,2]
[346639485,1735139438227,-829.37,0.00012814,2]
[346639486,1735139438237,-853.7,0.00012814,2]
[346639487,1735139438246,-500.0,0.00012814,2]
[346639488,1735139438255,-500.0,0.00012814,2]
[346639489,1735139438264,-1623.21,0.00012814,2]
[346639490,1735139438273,-500.0,0.00012814,2]
[346639491,1735139438282,-500.0,0.00012814,2]
[346639492,1735139438291,-6272.99,0.00012814,2]
[346639493,1735139438299,-2373.67,0.00012814,2]
[346639494,1735139438308,-500.0,0.00012814,2]
[346639495,1735139438321,-524.6,0.00012814,2]
[346639496,1735139438330,-564.3,0.00012814,2]
[346639497,1735139438339,-500.0,0.00012814,2]
[346639498,1735139438350,-500.0,0.00012814,2]
[346639499,1735139438359,-500.0,0.00012814,2]
[346639500,1735139438369,-500.0,0.00012814,2]
[346639501,1735139438378,-500.0,0.00012814,2]
[346639502,1735139438387,-500.0,0.00012814,2]
[346639503,1735139438396,-500.0,0.00012814,2]
[346639504,1735139438406,-500.0,0.00012814,2]
[346639505,1735139438415,-500.0,0.00012814,2]
[346639506,1735139438424,-564.55,0.00012814,2]
[346639507,1735139438433,-500.0,0.00012814,2]
[346639508,1735139438442,-3917.28,0.00012814,2]